[Event "*** Titled Tuesday Blitz"]
[Site "Chess.com"]
[Date "2018.10.02"]
[Round "6"]
[White "Quiet_Desperation"]
[Black "sergeikim"]
[Result "1-0"]
[WhiteElo "1929"]
[BlackElo "2427"]
[TimeControl "180+2"]
[EndTime "14:22:18 PDT"]
[Termination "Quiet_Desperation won by resignation"]

1. e4 {[%clk 0:03:01.9]} 1... e5 {[%clk 0:03:00.4]} 2. Nf3 {[%clk 0:03:02.9]}
2... Nc6 {[%clk 0:03:01.2]} 3. Bb5 {[%clk 0:03:04.6]} 3... a6 {[%clk 0:03:01.8]}
4. Ba4 {[%clk 0:03:06]} 4... Nf6 {[%clk 0:03:02.7]} 5. d3 {[%clk 0:03:07.5]}
5... b5 {[%clk 0:03:02]} 6. Bb3 {[%clk 0:03:08.5]} 6... Be7 {[%clk 0:03:03.5]}
7. c3 {[%clk 0:03:10]} 7... O-O {[%clk 0:03:04]} 8. O-O {[%clk 0:03:11.5]} 8...
d5 {[%clk 0:03:03.7]} 9. Qe2 {[%clk 0:03:12.2]} 9... d4 {[%clk 0:03:03.4]} 10.
h3 {[%clk 0:03:13]} 10... Be6 {[%clk 0:02:52.1]} 11. Bxe6 {[%clk 0:03:08]} 11...
fxe6 {[%clk 0:02:52.3]} 12. a4 {[%clk 0:03:09.4]} 12... b4 {[%clk 0:02:39]} 13.
Qc2 {[%clk 0:03:05.1]} 13... Nh5 {[%clk 0:02:32.4]} 14. cxd4 {[%clk 0:02:52.7]}
14... Nxd4 {[%clk 0:02:31.7]} 15. Nxd4 {[%clk 0:02:54]} 15... exd4 {[%clk
0:02:31.8]} 16. Nd2 {[%clk 0:02:52.7]} 16... Bd6 {[%clk 0:02:24.5]} 17. Nb3
{[%clk 0:02:48.7]} 17... Bf4 {[%clk 0:02:23.2]} 18. Qc4 {[%clk 0:02:46.2]} 18...
Qg5 {[%clk 0:02:17.3]} 19. Nxd4 {[%clk 0:02:42.4]} 19... Qe5 {[%clk 0:01:50.8]}
20. Nxe6 {[%clk 0:02:37.9]} 20... Rf7 {[%clk 0:01:49.3]} 21. Nxf4 {[%clk
0:02:18.4]} 21... Nxf4 {[%clk 0:01:49.3]} 22. Bxf4 {[%clk 0:02:19.7]} 22... Qxf4
{[%clk 0:01:50.4]} 23. Qxb4 {[%clk 0:02:10.4]} 23... a5 {[%clk 0:01:50.8]} 24.
Qc4 {[%clk 0:02:00.4]} 24... Rf8 {[%clk 0:01:46.2]} 25. Rac1 {[%clk 0:01:53]}
25... Kh8 {[%clk 0:01:45.3]} 26. b4 {[%clk 0:01:48]} 26... Qd2 {[%clk
0:01:38.5]} 27. Rc2 {[%clk 0:01:42.3]} 27... Qxb4 {[%clk 0:01:31.1]} 28. Qxb4
{[%clk 0:01:43.4]} 28... axb4 {[%clk 0:01:32.6]} 29. Ra1 {[%clk 0:01:20.6]}
29... Rd7 {[%clk 0:01:25.2]} 30. a5 {[%clk 0:01:20.3]} 30... Rxd3 {[%clk
0:01:20.7]} 31. Rxc7 {[%clk 0:01:21.1]} 31... Ra8 {[%clk 0:01:17.4]} 32. Rb7
{[%clk 0:01:17.1]} 32... Ra3 {[%clk 0:01:07.7]} 33. Rb1 {[%clk 0:01:14.2]} 33...
R3xa5 {[%clk 0:01:01.5]} 34. R1xb4 {[%clk 0:01:14.9]} 34... h6 {[%clk
0:01:02.3]} 35. Rb8+ {[%clk 0:01:15.7]} 35... Rxb8 {[%clk 0:01:00.9]} 36. Rxb8+
{[%clk 0:01:17.6]} 36... Kh7 {[%clk 0:01:02.1]} 37. Rb3 {[%clk 0:01:14.8]} 37...
Kg6 {[%clk 0:01:01.8]} 38. Re3 {[%clk 0:01:15.4]} 38... Kf6 {[%clk 0:01:02.3]}
39. f4 {[%clk 0:01:14.8]} 39... h5 {[%clk 0:00:57.1]} 40. e5+ {[%clk 0:01:15.3]}
40... Ke6 {[%clk 0:00:56.8]} 41. g4 {[%clk 0:01:14.3]} 41... hxg4 {[%clk
0:00:55.8]} 42. hxg4 {[%clk 0:01:15.1]} 42... g6 {[%clk 0:00:57.4]} 43. Kg2
{[%clk 0:01:11.9]} 43... Ra1 {[%clk 0:00:46.3]} 44. Kg3 {[%clk 0:01:08.3]} 44...
Ra4 {[%clk 0:00:45.3]} 45. Rd3 {[%clk 0:01:00.3]} 45... g5 {[%clk 0:00:28.7]}
46. Rd6+ {[%clk 0:00:59.6]} 46... Ke7 {[%clk 0:00:29.8]} 47. f5 {[%clk
0:00:43.1]} 47... Ra3+ {[%clk 0:00:22.3]} 48. Kf2 {[%clk 0:00:38.9]} 48... Ra4
{[%clk 0:00:21.2]} 49. f6+ {[%clk 0:00:39.2]} 49... Kf7 {[%clk 0:00:20.5]} 50.
Rd7+ {[%clk 0:00:39.6]} 50... Ke8 {[%clk 0:00:21.6]} 51. f7+ {[%clk 0:00:33.5]}
51... Kf8 {[%clk 0:00:21.6]} 52. e6 {[%clk 0:00:31.6]} 52... Rf4+ {[%clk
0:00:17.4]} 53. Ke3 {[%clk 0:00:29.1]} 53... Kg7 {[%clk 0:00:17.8]} 54. Rd8
{[%clk 0:00:24.1]} 54... Rf6 {[%clk 0:00:14]} 55. Rg8+ {[%clk 0:00:23.6]} 1-0

[Event "*** Titled Tuesday Blitz"]
[Site "Chess.com"]
[Date "2018.10.02"]
[Round "6"]
[White "017290"]
[Black "W_Amadeus"]
[Result "0-1"]
[WhiteElo "2383"]
[BlackElo "2608"]
[TimeControl "180+2"]
[EndTime "14:22:24 PDT"]
[Termination "W_Amadeus won by checkmate"]

1. e4 {[%clk 0:03:01.9]} 1... d6 {[%clk 0:03:01.9]} 2. d4 {[%clk 0:03:00.3]}
2... Nf6 {[%clk 0:03:03.4]} 3. Nc3 {[%clk 0:03:00]} 3... c6 {[%clk 0:03:05]} 4.
Nf3 {[%clk 0:02:53.1]} 4... Bg4 {[%clk 0:03:05.5]} 5. Be2 {[%clk 0:02:46.4]}
5... e6 {[%clk 0:03:06.5]} 6. O-O {[%clk 0:02:45.3]} 6... Be7 {[%clk 0:03:01.6]}
7. Re1 {[%clk 0:02:45.6]} 7... O-O {[%clk 0:02:53.5]} 8. Bf4 {[%clk 0:02:15.3]}
8... d5 {[%clk 0:02:42.2]} 9. Ne5 {[%clk 0:01:52.5]} 9... Bxe2 {[%clk
0:02:41.8]} 10. Qxe2 {[%clk 0:01:54.4]} 10... dxe4 {[%clk 0:02:37.7]} 11. Rad1
{[%clk 0:01:54.5]} 11... Nd5 {[%clk 0:02:19.2]} 12. Bd2 {[%clk 0:01:43.4]} 12...
f6 {[%clk 0:01:47.9]} 13. Nc4 {[%clk 0:01:24.5]} 13... b5 {[%clk 0:01:48.5]} 14.
Ne3 {[%clk 0:01:20.4]} 14... f5 {[%clk 0:01:46.9]} 15. Nf1 {[%clk 0:01:04.6]}
15... Bf6 {[%clk 0:01:41.6]} 16. f3 {[%clk 0:00:51.4]} 16... Bxd4+ {[%clk
0:01:30.9]} 17. Kh1 {[%clk 0:00:51.2]} 17... Bxc3 {[%clk 0:01:17.3]} 18. bxc3
{[%clk 0:00:46.2]} 18... Nd7 {[%clk 0:00:47.8]} 19. fxe4 {[%clk 0:00:44.8]}
19... fxe4 {[%clk 0:00:49]} 20. Qxe4 {[%clk 0:00:45.1]} 20... Qf6 {[%clk
0:00:46.6]} 21. Qxe6+ {[%clk 0:00:29]} 21... Qxe6 {[%clk 0:00:47.7]} 22. Rxe6
{[%clk 0:00:30.9]} 22... Rac8 {[%clk 0:00:43]} 23. Ng3 {[%clk 0:00:21]} 23...
Nc5 {[%clk 0:00:37.6]} 24. Rd6 {[%clk 0:00:19.4]} 24... Na4 {[%clk 0:00:37.1]}
25. Re1 {[%clk 0:00:17.6]} 25... Naxc3 {[%clk 0:00:29.4]} 26. Rd7 {[%clk
0:00:16.5]} 26... Rf7 {[%clk 0:00:25.1]} 27. Rxf7 {[%clk 0:00:09.4]} 27... Kxf7
{[%clk 0:00:27]} 28. Nf5 {[%clk 0:00:11]} 28... Rd8 {[%clk 0:00:18.7]} 29. h3
{[%clk 0:00:11.9]} 29... g6 {[%clk 0:00:11.8]} 30. Nh6+ {[%clk 0:00:12.7]} 30...
Kg7 {[%clk 0:00:11.5]} 31. Ng4 {[%clk 0:00:14]} 31... h5 {[%clk 0:00:11.4]} 32.
Ne5 {[%clk 0:00:12.6]} 32... Re8 {[%clk 0:00:11.6]} 33. a3 {[%clk 0:00:11.4]}
33... c5 {[%clk 0:00:09.7]} 34. g4 {[%clk 0:00:12.3]} 34... hxg4 {[%clk
0:00:10.4]} 35. hxg4 {[%clk 0:00:14.2]} 35... b4 {[%clk 0:00:10.6]} 36. axb4
{[%clk 0:00:16.1]} 36... cxb4 {[%clk 0:00:12.2]} 37. Kg2 {[%clk 0:00:16.6]}
37... a5 {[%clk 0:00:13.4]} 38. Kf3 {[%clk 0:00:17.8]} 38... a4 {[%clk
0:00:13.9]} 39. g5 {[%clk 0:00:19]} 39... a3 {[%clk 0:00:13.9]} 40. Bf4 {[%clk
0:00:20.3]} 40... Nxf4 {[%clk 0:00:10.5]} 41. Kxf4 {[%clk 0:00:20.9]} 41... a2
{[%clk 0:00:10.7]} 42. Ra1 {[%clk 0:00:22]} 42... Rd8 {[%clk 0:00:09.5]} 43. Nd3
{[%clk 0:00:22.9]} 43... b3 {[%clk 0:00:09.6]} 44. Ke3 {[%clk 0:00:21.8]} 44...
Rxd3+ {[%clk 0:00:09.1]} 45. Kxd3 {[%clk 0:00:23.4]} 45... b2 {[%clk 0:00:10.6]}
46. Re1 {[%clk 0:00:23.7]} 46... b1=Q {[%clk 0:00:08.6]} 47. Re7+ {[%clk
0:00:25.6]} 47... Kf8 {[%clk 0:00:09.2]} 48. Rc7 {[%clk 0:00:27.5]} 48... Qd1+
{[%clk 0:00:06.1]} 49. Kxc3 {[%clk 0:00:27.9]} 49... a1=Q+ {[%clk 0:00:07.5]}
50. Kb4 {[%clk 0:00:28.8]} 50... Qb2+ {[%clk 0:00:07.4]} 51. Kc5 {[%clk
0:00:28.5]} 51... Qdd4+ {[%clk 0:00:06]} 52. Kc6 {[%clk 0:00:29.2]} 52... Qbb6#
{[%clk 0:00:07.9]} 0-1

[Event "*** Titled Tuesday Blitz"]
[Site "Chess.com"]
[Date "2018.10.02"]
[Round "6"]
[White "GrigorGrigorov"]
[Black "SantoBlue"]
[Result "1-0"]
[WhiteElo "2745"]
[BlackElo "2810"]
[TimeControl "180+2"]
[EndTime "14:22:28 PDT"]
[Termination "GrigorGrigorov won by resignation"]

1. d4 {[%clk 0:03:01.9]} 1... Nf6 {[%clk 0:02:59.1]} 2. Nf3 {[%clk 0:03:00.8]}
2... e6 {[%clk 0:02:59.9]} 3. c4 {[%clk 0:03:01]} 3... b6 {[%clk 0:03:00.2]} 4.
g3 {[%clk 0:03:01.6]} 4... Bb7 {[%clk 0:02:59.5]} 5. Bg2 {[%clk 0:03:02.3]} 5...
Be7 {[%clk 0:02:59.8]} 6. O-O {[%clk 0:03:02.8]} 6... O-O {[%clk 0:03:01.2]} 7.
Nc3 {[%clk 0:03:03.6]} 7... Ne4 {[%clk 0:03:02]} 8. Qc2 {[%clk 0:03:04.6]} 8...
Nxc3 {[%clk 0:03:02]} 9. Qxc3 {[%clk 0:03:05.8]} 9... Be4 {[%clk 0:03:03.6]} 10.
Rd1 {[%clk 0:02:54]} 10... c5 {[%clk 0:02:54]} 11. dxc5 {[%clk 0:02:45.5]} 11...
bxc5 {[%clk 0:02:48.8]} 12. Ne5 {[%clk 0:02:46.7]} 12... Bxg2 {[%clk 0:02:39.9]}
13. Kxg2 {[%clk 0:02:48.6]} 13... a5 {[%clk 0:02:31.3]} 14. Qf3 {[%clk
0:02:45.8]} 14... Ra7 {[%clk 0:02:22.4]} 15. Be3 {[%clk 0:01:45.5]} 15... Qb6
{[%clk 0:02:06.9]} 16. b3 {[%clk 0:01:39.6]} 16... d6 {[%clk 0:01:44.6]} 17. Nd3
{[%clk 0:01:39.4]} 17... Nc6 {[%clk 0:01:45.2]} 18. Rab1 {[%clk 0:01:39.8]}
18... Qc7 {[%clk 0:01:38.5]} 19. Nb2 {[%clk 0:01:22.6]} 19... Nb4 {[%clk
0:01:29.4]} 20. a3 {[%clk 0:00:55.5]} 20... Nc2 {[%clk 0:00:37.2]} 21. Na4
{[%clk 0:00:55.8]} 21... Bf6 {[%clk 0:00:25.1]} 22. Bf4 {[%clk 0:00:50.5]} 22...
Nd4 {[%clk 0:00:17.6]} 23. Qd3 {[%clk 0:00:51.5]} 23... Qc6+ {[%clk 0:00:12]}
24. f3 {[%clk 0:00:51]} 24... Rb7 {[%clk 0:00:12.2]} 25. Nc3 {[%clk 0:00:43]}
25... Rfb8 {[%clk 0:00:08.1]} 26. Nb5 {[%clk 0:00:19.3]} 26... e5 {[%clk
0:00:05.9]} 27. Nxd4 {[%clk 0:00:16.8]} 27... cxd4 {[%clk 0:00:07.8]} 28. Bd2
{[%clk 0:00:17.5]} 28... d5 {[%clk 0:00:06.6]} 29. cxd5 {[%clk 0:00:16.1]} 29...
Qxd5 {[%clk 0:00:08.5]} 30. b4 {[%clk 0:00:17.6]} 30... Be7 {[%clk 0:00:08.4]}
31. bxa5 {[%clk 0:00:16]} 31... g6 {[%clk 0:00:07.6]} 32. a6 {[%clk 0:00:15.7]}
32... Rxb1 {[%clk 0:00:06.8]} 33. Rxb1 {[%clk 0:00:17.6]} 33... Ra8 {[%clk
0:00:07.7]} 34. Rb7 {[%clk 0:00:17.3]} 34... Bd6 {[%clk 0:00:07.8]} 35. Bb4
{[%clk 0:00:18]} 35... Qc6 {[%clk 0:00:04.4]} 36. Qb3 {[%clk 0:00:18.1]} 36...
Rf8 {[%clk 0:00:04.1]} 37. Bxd6 {[%clk 0:00:18.4]} 37... Qxd6 {[%clk 0:00:06]}
38. a7 {[%clk 0:00:19.9]} 38... Qa6 {[%clk 0:00:07.5]} 39. Qb5 {[%clk
0:00:17.2]} 39... Qxa3 {[%clk 0:00:05.9]} 40. Qb4 {[%clk 0:00:16.3]} 40... Qa2
{[%clk 0:00:03.9]} 41. Kf2 {[%clk 0:00:15.9]} 41... d3 {[%clk 0:00:05.3]} 42.
Qxf8+ {[%clk 0:00:10.1]} 42... Kxf8 {[%clk 0:00:06.3]} 43. Rb8+ {[%clk 0:00:12]}
43... Kg7 {[%clk 0:00:07.7]} 44. a8=Q {[%clk 0:00:13.5]} 44... Qxe2+ {[%clk
0:00:08.7]} 45. Kg1 {[%clk 0:00:14.8]} 45... d2 {[%clk 0:00:08.7]} 46. Rg8+
{[%clk 0:00:13.7]} 46... Kh6 {[%clk 0:00:09.1]} 47. Qf8+ {[%clk 0:00:14.1]}
47... Kg5 {[%clk 0:00:07.5]} 48. Qe7+ {[%clk 0:00:06.1]} 48... Kf5 {[%clk
0:00:03.5]} 49. Qxf7+ {[%clk 0:00:06.5]} 49... Kg5 {[%clk 0:00:04.5]} 50. h4+
{[%clk 0:00:04.7]} 1-0

[Event "*** Titled Tuesday Blitz"]
[Site "Chess.com"]
[Date "2018.10.02"]
[Round "6"]
[White "Morshynska"]
[Black "Zarikovs1999"]
[Result "1/2-1/2"]
[WhiteElo "2081"]
[BlackElo "2191"]
[TimeControl "180+2"]
[EndTime "14:22:35 PDT"]
[Termination "Game drawn by stalemate"]

1. d4 {[%clk 0:03:01.9]} 1... Nf6 {[%clk 0:02:59.4]} 2. c4 {[%clk 0:03:02.4]}
2... c5 {[%clk 0:02:58.9]} 3. e3 {[%clk 0:03:02.3]} 3... g6 {[%clk 0:02:48.4]}
4. Nf3 {[%clk 0:03:01]} 4... Bg7 {[%clk 0:02:49.3]} 5. Nc3 {[%clk 0:03:00.7]}
5... O-O {[%clk 0:02:50.1]} 6. dxc5 {[%clk 0:02:55.4]} 6... Na6 {[%clk 0:02:47]}
7. Be2 {[%clk 0:02:49.5]} 7... Nxc5 {[%clk 0:02:46.9]} 8. O-O {[%clk 0:02:50.3]}
8... d6 {[%clk 0:02:41.3]} 9. Nd4 {[%clk 0:02:48.7]} 9... a6 {[%clk 0:02:35.9]}
10. Bf3 {[%clk 0:02:42.2]} 10... e5 {[%clk 0:02:34.9]} 11. Nb3 {[%clk
0:02:38.3]} 11... Qe7 {[%clk 0:02:32.9]} 12. Nxc5 {[%clk 0:02:16.1]} 12... dxc5
{[%clk 0:02:33.2]} 13. Nd5 {[%clk 0:02:18]} 13... Nxd5 {[%clk 0:02:33.6]} 14.
Bxd5 {[%clk 0:02:19.9]} 14... Be6 {[%clk 0:02:33.9]} 15. e4 {[%clk 0:02:20.6]}
15... Bxd5 {[%clk 0:02:33.4]} 16. cxd5 {[%clk 0:02:10.6]} 16... Qd6 {[%clk
0:02:28.5]} 17. Be3 {[%clk 0:02:09.5]} 17... f5 {[%clk 0:02:28]} 18. f3 {[%clk
0:02:10.2]} 18... b5 {[%clk 0:02:23.7]} 19. b3 {[%clk 0:02:04.1]} 19... Rac8
{[%clk 0:02:23.9]} 20. Rc1 {[%clk 0:02:01.4]} 20... c4 {[%clk 0:01:55.6]} 21.
bxc4 {[%clk 0:02:01.9]} 21... bxc4 {[%clk 0:01:54.5]} 22. Qa4 {[%clk 0:02:00.7]}
22... fxe4 {[%clk 0:01:53.1]} 23. fxe4 {[%clk 0:02:02.6]} 23... Rxf1+ {[%clk
0:01:51.9]} 24. Rxf1 {[%clk 0:02:03.1]} 24... c3 {[%clk 0:01:52.3]} 25. Rc1
{[%clk 0:01:43.6]} 25... Qc7 {[%clk 0:00:59.9]} 26. Qb3 {[%clk 0:01:11]} 26...
Qc4 {[%clk 0:00:55]} 27. d6 {[%clk 0:00:53.3]} 27... Qxb3 {[%clk 0:00:32.7]} 28.
axb3 {[%clk 0:00:55.2]} 28... Rd8 {[%clk 0:00:27.7]} 29. Bc5 {[%clk 0:00:46.5]}
29... Bf8 {[%clk 0:00:28.4]} 30. Rxc3 {[%clk 0:00:41.2]} 30... Bxd6 {[%clk
0:00:28.8]} 31. Bxd6 {[%clk 0:00:32]} 31... Rxd6 {[%clk 0:00:30.7]} 32. Rc5
{[%clk 0:00:28.4]} 32... Rd3 {[%clk 0:00:23.9]} 33. Rxe5 {[%clk 0:00:21.2]}
33... Rxb3 {[%clk 0:00:23.7]} 34. Re6 {[%clk 0:00:21.2]} 34... Ra3 {[%clk
0:00:21.8]} 35. h4 {[%clk 0:00:21]} 35... a5 {[%clk 0:00:21.7]} 36. Ra6 {[%clk
0:00:21.1]} 36... Ra2 {[%clk 0:00:20.5]} 37. Kh2 {[%clk 0:00:21.2]} 37... a4
{[%clk 0:00:19]} 38. e5 {[%clk 0:00:22]} 38... Re2 {[%clk 0:00:19]} 39. Rxa4
{[%clk 0:00:20.9]} 39... Rxe5 {[%clk 0:00:20]} 40. Ra7 {[%clk 0:00:20.4]} 40...
Rf5 {[%clk 0:00:20.2]} 41. g3 {[%clk 0:00:20.9]} 41... Rc5 {[%clk 0:00:20.9]}
42. Kh3 {[%clk 0:00:21.9]} 42... Rf5 {[%clk 0:00:22]} 43. Kg4 {[%clk 0:00:22.7]}
43... Rf7 {[%clk 0:00:23]} 44. Rxf7 {[%clk 0:00:22.4]} 44... Kxf7 {[%clk
0:00:24.9]} 45. h5 {[%clk 0:00:23.5]} 45... Kf6 {[%clk 0:00:24.1]} 46. hxg6
{[%clk 0:00:22.6]} 46... hxg6 {[%clk 0:00:25.6]} 47. Kf4 {[%clk 0:00:23.5]}
47... g5+ {[%clk 0:00:24.8]} 48. Ke4 {[%clk 0:00:21.5]} 48... g4 {[%clk
0:00:16.6]} 49. Kf4 {[%clk 0:00:21.6]} 49... Kf7 {[%clk 0:00:18]} 50. Kf5 {[%clk
0:00:15.2]} 50... Kg7 {[%clk 0:00:18.2]} 51. Kg5 {[%clk 0:00:15.8]} 51... Kf7
{[%clk 0:00:19.2]} 52. Kxg4 {[%clk 0:00:14.9]} 52... Kg6 {[%clk 0:00:20]} 53.
Kf4 {[%clk 0:00:15.5]} 53... Kf6 {[%clk 0:00:21.2]} 54. g4 {[%clk 0:00:16.7]}
54... Kg6 {[%clk 0:00:23.1]} 55. g5 {[%clk 0:00:17.6]} 55... Kg7 {[%clk
0:00:24.6]} 56. Kg4 {[%clk 0:00:18.7]} 56... Kg6 {[%clk 0:00:25.9]} 57. Kf4
{[%clk 0:00:19.9]} 57... Kg7 {[%clk 0:00:27.8]} 58. Kf5 {[%clk 0:00:21.8]} 58...
Kf7 {[%clk 0:00:28.9]} 59. g6+ {[%clk 0:00:23.7]} 59... Kg7 {[%clk 0:00:30.2]}
60. Kg5 {[%clk 0:00:25.6]} 60... Kg8 {[%clk 0:00:31.8]} 61. Kf6 {[%clk
0:00:27.2]} 61... Kf8 {[%clk 0:00:33.1]} 62. g7+ {[%clk 0:00:28.6]} 62... Kg8
{[%clk 0:00:34.1]} 63. Kg6 {[%clk 0:00:30.5]} 1/2-1/2

[Event "*** Titled Tuesday Blitz"]
[Site "Chess.com"]
[Date "2018.10.02"]
[Round "6"]
[White "TST2014"]
[Black "Zq1"]
[Result "0-1"]
[WhiteElo "2469"]
[BlackElo "2592"]
[TimeControl "180+2"]
[EndTime "14:22:56 PDT"]
[Termination "Zq1 won on time"]

1. d4 {[%clk 0:03:01.9]} 1... Nf6 {[%clk 0:03:00.2]} 2. c4 {[%clk 0:03:00.8]}
2... a6 {[%clk 0:03:00.8]} 3. Nf3 {[%clk 0:02:57.2]} 3... c5 {[%clk 0:03:01.7]}
4. dxc5 {[%clk 0:02:57.3]} 4... e6 {[%clk 0:03:02.2]} 5. Bg5 {[%clk 0:02:44.2]}
5... Bxc5 {[%clk 0:03:00.9]} 6. e3 {[%clk 0:02:45.3]} 6... Qa5+ {[%clk
0:02:57.2]} 7. Nbd2 {[%clk 0:02:35.5]} 7... Ne4 {[%clk 0:02:57.6]} 8. Bf4 {[%clk
0:02:34.4]} 8... g5 {[%clk 0:02:55.5]} 9. Bxb8 {[%clk 0:02:20.3]} 9... Rxb8
{[%clk 0:02:55.3]} 10. a3 {[%clk 0:02:20.2]} 10... Nxd2 {[%clk 0:02:42.5]} 11.
Qxd2 {[%clk 0:02:19.8]} 11... Qxd2+ {[%clk 0:02:40.9]} 12. Nxd2 {[%clk
0:02:21.1]} 12... Be7 {[%clk 0:02:34.4]} 13. b4 {[%clk 0:02:17.4]} 13... b6
{[%clk 0:02:31.4]} 14. Be2 {[%clk 0:02:15.8]} 14... Bb7 {[%clk 0:02:32.1]} 15.
Bf3 {[%clk 0:02:16.8]} 15... Bxf3 {[%clk 0:02:28.6]} 16. Nxf3 {[%clk 0:02:11.5]}
16... Rc8 {[%clk 0:02:29.1]} 17. Rc1 {[%clk 0:02:10.6]} 17... a5 {[%clk
0:02:28.8]} 18. c5 {[%clk 0:01:40.2]} 18... axb4 {[%clk 0:02:25.6]} 19. axb4
{[%clk 0:01:40.8]} 19... bxc5 {[%clk 0:02:25.4]} 20. bxc5 {[%clk 0:01:41.8]}
20... g4 {[%clk 0:02:20.8]} 21. Ne5 {[%clk 0:01:42.5]} 21... Bxc5 {[%clk
0:02:15.4]} 22. Ke2 {[%clk 0:01:43]} 22... Ke7 {[%clk 0:02:01]} 23. Rhd1 {[%clk
0:01:23.8]} 23... d6 {[%clk 0:02:00.4]} 24. Nxg4 {[%clk 0:01:23]} 24... Rhg8
{[%clk 0:01:57.4]} 25. f3 {[%clk 0:01:11.9]} 25... h5 {[%clk 0:01:57]} 26. Nf2
{[%clk 0:01:13.1]} 26... Rxg2 {[%clk 0:01:57.3]} 27. h3 {[%clk 0:01:09.5]} 27...
Ra8 {[%clk 0:01:46.9]} 28. Rc2 {[%clk 0:01:07.1]} 28... Ra3 {[%clk 0:01:46.1]}
29. Kf1 {[%clk 0:01:05.7]} 29... Rg3 {[%clk 0:01:42.4]} 30. Nd3 {[%clk
0:00:37.9]} 30... Rxf3+ {[%clk 0:01:40.7]} 31. Kg2 {[%clk 0:00:39]} 31... Rxe3
{[%clk 0:01:38.5]} 32. Nxc5 {[%clk 0:00:39.9]} 32... dxc5 {[%clk 0:01:34.6]} 33.
Rxc5 {[%clk 0:00:41.2]} 33... Rg3+ {[%clk 0:01:31.6]} 34. Kf2 {[%clk 0:00:41]}
34... Rad3 {[%clk 0:01:29.1]} 35. Rxd3 {[%clk 0:00:39.5]} 35... Rxd3 {[%clk
0:01:29.4]} 36. Rxh5 {[%clk 0:00:41.1]} 36... f5 {[%clk 0:01:29.1]} 37. Rh8
{[%clk 0:00:38.3]} 37... Kf6 {[%clk 0:01:29.3]} 38. h4 {[%clk 0:00:39.4]} 38...
Rh3 {[%clk 0:01:23]} 39. Kg2 {[%clk 0:00:39.8]} 39... Ra3 {[%clk 0:01:22.9]} 40.
Rg8 {[%clk 0:00:40.5]} 40... Ra7 {[%clk 0:01:01.6]} 41. Kf3 {[%clk 0:00:38.3]}
41... e5 {[%clk 0:01:00.1]} 42. Rf8+ {[%clk 0:00:37.9]} 42... Rf7 {[%clk
0:00:56.5]} 43. Rh8 {[%clk 0:00:33.8]} 43... Rg7 {[%clk 0:00:47.1]} 44. Rf8+
{[%clk 0:00:33]} 44... Ke6 {[%clk 0:00:38.1]} 45. Re8+ {[%clk 0:00:32.8]} 45...
Re7 {[%clk 0:00:37.2]} 46. Rh8 {[%clk 0:00:33.1]} 46... Ra7 {[%clk 0:00:34.6]}
47. Re8+ {[%clk 0:00:33.4]} 47... Kd6 {[%clk 0:00:34.9]} 48. Rd8+ {[%clk
0:00:33.5]} 48... Ke7 {[%clk 0:00:36]} 49. Rh8 {[%clk 0:00:31.3]} 49... Ra3+
{[%clk 0:00:36.5]} 50. Kg2 {[%clk 0:00:32.6]} 50... e4 {[%clk 0:00:35.4]} 51. h5
{[%clk 0:00:33.7]} 51... Kf6 {[%clk 0:00:35.5]} 52. h6 {[%clk 0:00:34.6]} 52...
Ra7 {[%clk 0:00:27.3]} 53. h7 {[%clk 0:00:30.7]} 53... Kg6 {[%clk 0:00:25.9]}
54. Kg3 {[%clk 0:00:28.3]} 54... Rxh7 {[%clk 0:00:25]} 55. Rf8 {[%clk 0:00:27]}
55... Rf7 {[%clk 0:00:22.8]} 56. Re8 {[%clk 0:00:27.9]} 56... f4+ {[%clk
0:00:22.2]} 57. Kg4 {[%clk 0:00:29]} 57... f3 {[%clk 0:00:21.9]} 58. Ra8 {[%clk
0:00:12.4]} 58... f2 {[%clk 0:00:22.4]} 59. Ra6+ {[%clk 0:00:14]} 59... Rf6
{[%clk 0:00:21.5]} 0-1